fUST/lending_fUST_20250729
["ID","MTS","AMOUNT","RATE_DAILY","PERIOD"]
[375773335,1753740642716,-500.0,0.00021573,2]
[375773336,1753740642726,-500.0,0.00021573,2]
[375773337,1753740642735,-500.0,0.00021573,2]
[375773338,1753740642745,-25000.0,0.00021574,2]
[375773339,1753740642755,-6270.21777562,0.00021574,2]
[375773340,1753740642764,-500.0,0.00021574,2]
[375773341,1753740642775,-500.0,0.00021574,2]
[375773342,1753740642784,-151.0,0.00021574,2]
[375773343,1753740642794,-151.0,0.00021574,2]
[375773344,1753740642803,-500.0,0.00021574,2]
[375773345,1753740642813,-151.0,0.00021574,2]
[375773346,1753740642822,-515.71519755,0.00021574,2]
[375773347,1753740642832,-151.0,0.00021574,2]
[375773348,1753740642841,-151.0,0.00021574,2]
[375773349,1753740642851,-151.0,0.00021574,2]
[375773350,1753740642861,-151.0,0.00021574,2]
[375773351,1753740642871,-151.0,0.00021574,2]
[375773352,1753740642881,-151.0,0.00021574,2]
[375773353,1753740642891,-151.0,0.00021574,2]
[375773354,1753740642900,-151.0,0.00021574,2]
[375773355,1753740642912,-151.0,0.00021574,2]
[375773356,1753740642922,-151.0,0.00021574,2]
[375773357,1753740642931,-151.0,0.00021574,2]
[375773358,1753740642941,-151.0,0.00021574,2]
[375773359,1753740642951,-151.0,0.00021574,2]
[375773360,1753740642960,-151.0,0.00021574,2]
[375773361,1753740642970,-151.0,0.00021574,2]
[375773362,1753740642980,-151.0,0.00021574,2]
[375773363,1753740642990,-151.0,0.00021574,2]
[375773364,1753740642999,-151.0,0.00021574,2]
[375773365,1753740643009,-151.0,0.00021574,2]
[375773366,1753740643019,-151.0,0.00021574,2]
[375773367,1753740643029,-151.0,0.00021574,2]
[375773368,1753740643039,-151.0,0.00021574,2]
[375773369,1753740643048,-151.0,0.00021574,2]
[375773370,1753740643058,-151.0,0.00021574,2]
[375773371,1753740643068,-199.88962101,0.00021574,2]
[375773373,1753740643078,-151.0,0.00021574,2]
[375773375,1753740643087,-151.0,0.00021574,2]
[375773377,1753740643097,-151.0,0.00021574,2]
[375773379,1753740643108,-151.0,0.00021574,2]
[375773383,1753740643133,-151.0,0.00021574,2]
[375773385,1753740643143,-151.0,0.00021574,2]
[375773387,1753740643153,-151.0,0.00021574,2]
[375773389,1753740643164,-151.0,0.00021574,2]
[375773391,1753740643175,-3801.642,0.00021574,2]
[375773393,1753740643184,-151.0,0.00021574,2]
[375773395,1753740643194,-151.0,0.00021574,2]
[375773397,1753740643204,-151.0,0.00021574,2]
[375773400,1753740643214,-151.0,0.00021574,2]
[375773402,1753740643224,-151.0,0.00021574,2]
[375773404,1753740643234,-151.0,0.00021574,2]
[375773406,1753740643243,-151.0,0.00021574,2]
[375773408,1753740643255,-151.0,0.00021574,2]
[375773410,1753740643264,-151.0,0.00021574,2]
[375773412,1753740643274,-151.0,0.00021574,2]
[375773414,1753740643284,-151.0,0.00021574,2]
[375773416,1753740643295,-151.0,0.00021574,2]
[375773418,1753740643305,-151.0,0.00021574,2]
[375773420,1753740643314,-151.0,0.00021574,2]
[375773422,1753740643324,-151.0,0.00021574,2]
[375773424,1753740643334,-151.0,0.00021574,2]
[375773426,1753740643344,-151.0,0.00021574,2]
[375773428,1753740643354,-151.0,0.00021574,2]
[375773430,1753740643364,-151.0,0.00021574,2]
[375773433,1753740643374,-151.0,0.00021574,2]
[375773435,1753740643384,-765.64,0.00021621,3]
[375773437,1753740643394,-553.45,0.00021628,2]
[375773439,1753740643403,-740.21,0.00021628,2]
[375773441,1753740643416,-3942.302754,0.00021629,2]
[375773443,1753740643426,-460.0,0.00021629,2]
[375773445,1753740643436,-460.0,0.00021629,2]
[375773447,1753740643446,-460.0,0.00021629,2]
[375773449,1753740643456,-178.917,0.00021629,2]
[375773450,1753740643466,-1778.31,0.00021629,2]
[375773451,1753740643476,-2533.85,0.00021631,2]
[375773452,1753740643486,-460.0,0.00021631,2]
[375773453,1753740643497,-460.0,0.00021631,2]
[375773454,1753740643508,-460.0,0.00021636,2]
[375773455,1753740643517,-1140.95,0.00021638,2]
[375773456,1753740643527,-1440.1197805,0.00021639,2]
[375773457,1753740643537,-745.11,0.00021642,2]
[375773458,1753740643547,-784.43,0.00021643,2]
[375773459,1753740643557,-891.18,0.00021643,2]
[375773460,1753740643566,-460.0,0.00021643,2]
[375773461,1753740643576,-1719.83,0.00021643,2]
[375773462,1753740643587,-604.11,0.00021643,2]
[375773463,1753740643598,-3660.981246,0.00021684,2]
[375773464,1753740643608,-927.8,0.00021696,4]
[375773465,1753740643619,-1190.240233,0.00021739,2]
[375773466,1753740643628,-320.48502,0.00021739,2]
[375773467,1753740643639,-1190.240233,0.00021739,2]
[375773468,1753740643649,-320.48502,0.00021739,2]
[375773469,1753740643659,-315.480314,0.00021739,2]
[375773470,1753740643668,-315.480314,0.00021739,2]
[375773471,1753740643679,-954.533243,0.00021739,2]
[375773472,1753740643689,-954.533243,0.00021739,2]
[375773473,1753740643699,-151.0,0.00021739,2]
[375773474,1753740643709,-151.0,0.00021739,2]
[375773475,1753740643719,-500.0,0.0002174,2]
[375773476,1753740643729,-553.45,0.00021902,2]
[375773477,1753740643744,-740.21,0.00021902,2]
[375773478,1753740643754,-460.0,0.00021903,2]
[375773479,1753740643764,-460.0,0.00021903,2]
[375773480,1753740643777,-460.0,0.00021903,2]
[375773481,1753740643787,-2533.85,0.00021905,2]
[375773482,1753740643797,-460.0,0.00021905,2]
[375773483,1753740643807,-460.0,0.00021905,2]
[375773484,1753740643817,-382.82,0.00021907,3]
[375773485,1753740643826,-1140.95,0.00021912,2]
[375773486,1753740643836,-745.11,0.00021916,2]
[375773487,1753740643846,-500.0,0.00021917,2]
[375773488,1753740643856,-500.0,0.00021917,2]
[375773489,1753740643869,-500.0,0.00021917,2]
[375773490,1753740643879,-500.0,0.00021917,2]
[375773491,1753740643889,-500.0,0.00021917,2]
[375773492,1753740643899,-500.0,0.00021917,2]
[375773493,1753740643910,-500.0,0.00021917,2]
[375773494,1753740643921,-500.0,0.00021917,2]
[375773495,1753740643930,-500.0,0.00021917,2]
[375773496,1753740643940,-500.0,0.00021917,2]
[375773497,1753740643951,-784.43,0.00021917,2]
[375773498,1753740643961,-891.18,0.00021917,2]
[375773499,1753740643971,-460.0,0.00021917,2]
[375773500,1753740643980,-1719.83,0.00021917,2]
[375773501,1753740643991,-604.11,0.00021917,2]
[375773502,1753740644000,-200.0,0.00021918,2]
[375773503,1753740644010,-488.09798802,0.00021918,2]
[375773504,1753740644020,-500.0,0.00021918,2]
[375773505,1753740644030,-500.0,0.00021918,2]
[375773506,1753740644040,-360.0,0.00021974,2]
[375773507,1753740644050,-151.0,0.00022,7]
[375773508,1753740644061,-1190.240233,0.00022,7]
[375773509,1753740644071,-320.48502,0.00022,7]
[375773510,1753740644081,-320.48502,0.00022,7]
[375773511,1753740644091,-1190.240233,0.00022,7]
[375773512,1753740644101,-315.480314,0.00022,7]
[375773513,1753740644111,-315.480314,0.00022,7]
[375773514,1753740644120,-954.533243,0.00022,7]
[375773515,1753740644130,-954.533243,0.00022,7]
[375773516,1753740644140,-151.0,0.00022,7]
[375773517,1753740644149,-151.0,0.00022,7]
[375773518,1753740644160,-151.0,0.00022,2]
[375773519,1753740644170,-197.0,0.00022,2]
[375773520,1753740644180,-269.15858622,0.00022068,2]
[375773521,1753740644190,-1014.23413505,0.00022121,2]
[375773522,1753740644199,-1000.0,0.00022121,2]
[375773523,1753740644210,-712.32287949,0.00022121,2]
[375773524,1753740644219,-927.8,0.00022139,4]
[375773525,1753740644229,-500.0,0.00022176,2]
[375773526,1753740644240,-553.45,0.00022176,2]
[375773527,1753740644250,-740.21,0.00022176,2]
[375773528,1753740644260,-460.0,0.00022177,2]
[375773529,1753740644270,-460.0,0.00022177,2]
[375773530,1753740644281,-460.0,0.00022177,2]
[375773531,1753740644291,-2533.85,0.00022179,2]
[375773532,1753740644300,-460.0,0.00022179,2]
[375773533,1753740644310,-460.0,0.00022179,2]
[375773534,1753740644320,-1140.95,0.00022186,2]
[375773535,1753740644330,-745.11,0.0002219,2]
[375773536,1753740644340,-784.43,0.00022191,2]
[375773537,1753740644351,-891.18,0.00022191,2]
[375773538,1753740644360,-460.0,0.00022191,2]
[375773539,1753740644371,-1719.83,0.00022191,2]
[375773540,1753740644383,-604.11,0.00022191,2]
[375773541,1753740644392,-200.0,0.000223,2]
[375773542,1753740644402,-500.0,0.00022373,2]
[375773543,1753740644415,-58429.62340054,0.0002238,2]
[375773544,1753740644425,-553.45,0.0002245,2]
[375773545,1753740644434,-740.21,0.0002245,2]
[375773546,1753740644444,-460.0,0.00022451,2]
[375773547,1753740644454,-460.0,0.00022451,2]
[375773548,1753740644464,-238.17,0.00022451,2]
[375773549,1753740644474,-2533.85,0.00022453,2]
[375773550,1753740644483,-232.31,0.00022453,2]
[375773551,1753740644495,-460.0,0.00022453,2]
[375773552,1753740644505,-296.22497902,0.00022457,2]
[375773553,1753740644515,-1140.95,0.0002246,2]
[375773554,1753740644524,-745.11,0.00022464,2]
[375773555,1753740644534,-784.43,0.00022465,2]
[375773556,1753740644544,-891.18,0.00022465,2]
[375773557,1753740644554,-460.0,0.00022465,2]
[375773558,1753740644564,-1719.83,0.00022465,2]
[375773559,1753740644573,-604.11,0.00022465,2]
[375773560,1753740644583,-500.0,0.00022473,2]
[375773561,1753740644593,-2893.32715004,0.00022489,2]
[375773562,1753740644603,-327.11393103,0.00022489,2]
[375773563,1753740644612,-2893.32715004,0.00022489,2]
[375773564,1753740644622,-2893.32715004,0.00022489,2]
[375773565,1753740644632,-2893.32715004,0.00022489,2]
[375773566,1753740644642,-2893.32715004,0.00022489,2]
[375773567,1753740644652,-2893.32715004,0.00022489,2]
[375773568,1753740644663,-2893.32715004,0.00022489,2]
[375773569,1753740644672,-2893.32715004,0.00022489,2]
[375773570,1753740644682,-2893.32715004,0.00022489,2]
[375773571,1753740644692,-2893.32715004,0.00022489,2]
[375773572,1753740644701,-2893.32715004,0.00022489,2]
[375773573,1753740644711,-2893.32715004,0.00022489,2]
[375773574,1753740644721,-2893.32715004,0.00022489,2]
[375773575,1753740644730,-2893.32715004,0.00022489,2]
[375773576,1753740644740,-2893.32715004,0.00022489,2]
[375773577,1753740644749,-2893.32715004,0.00022489,2]
[375773578,1753740644759,-2893.32715004,0.00022489,2]
[375773579,1753740644768,-2893.32715004,0.00022489,2]
[375773580,1753740644778,-2893.32715004,0.00022489,2]
[375773581,1753740644788,-3037.99350752,0.00022489,2]
[375773582,1753740644797,-3037.99350752,0.00022489,2]
[375773583,1753740644807,-3037.99350752,0.00022489,2]
[375773584,1753740644817,-3037.99350752,0.00022489,2]
[375773585,1753740644827,-151.0,0.00022489,7]
[375773586,1753740644837,-151.0,0.00022489,7]
[375773587,1753740644847,-1155.64503331,0.0002249,2]
[375773588,1753740644856,-641791.3375274,0.0002249,7]
[375773589,1753740644940,-460.0,0.00020258,2]
[375773590,1753740644950,-460.0,0.00020532,2]
[375773591,1753740644960,-460.0,0.00020806,2]
[375773592,1753740644971,-460.0,0.0002108,2]
[375773593,1753740644981,-365.69849881,0.00021354,2]
[375773594,1753740644993,-94.30150119,0.00021354,2]
[375773595,1753740645002,-460.0,0.00021628,2]
[375773596,1753740645012,-460.0,0.0002191,2]
[375773597,1753740645021,-212.03,0.00022,2]
[375773598,1753740645031,-85.82187604,0.00022184,2]
[375773599,1753740645042,-374.17812396,0.00022184,2]
[375773600,1753740645053,-3193.33093721,0.0002249,7]
[375773601,1753740645065,-714.78080813,0.0002249,7]
[375773602,1753740645077,-2162.07713982,0.0002249,7]
[375773603,1753740645090,-881.05,0.0002249,7]
[375773604,1753740645103,-2038.05364534,0.0002249,7]
[375773606,1753740645564,-6446.61386025,0.00020812,2]
[375773607,1753740646602,-1718.06597466,0.00020812,2]
[375773608,1753740646614,-805.18422787,0.00020812,2]
[375773609,1753740646626,-608.98493076,0.00020812,2]
[375773610,1753740646638,-13686.78480999,0.00020812,2]
[375773611,1753740646647,-460.0,0.00021902,2]
[375773612,1753740646658,-189.62,0.00022176,2]
[375773613,1753740646667,-460.0,0.00022458,2]
[375773614,1753740646678,-5719.77801063,0.0002249,7]
[375773615,1753740646690,-5209.41169559,0.0002249,7]
[375773616,1753740646702,-13793.18864979,0.0002249,7]
[375773617,1753740646714,-935.5364121,0.0002249,7]
[375773619,1753740743316,150.0,0.00022405,30]
[375773623,1753740815989,150.0,0.00022313,30]
[375773624,1753740889210,207.362615,0.00018176,2]
[375773625,1753740890565,150.0,0.00021903,30]
[375773626,1753740992866,4401.69726542,0.00018167,2]
[375773627,1753740992889,20498.30273458,0.00018167,2]
[375773629,1753741149251,252.711734,0.00013699,2]
[375773638,1753741633132,-257.0,0.00018765,2]
[375773639,1753741633170,-1200.0,0.00018765,2]
[375773640,1753741633193,-4723.08008863,0.00018766,2]
[375773642,1753741645114,-610.76758519,0.00018766,2]
[375773677,1753741831824,-7260.13892898,0.00018766,2]
[375773678,1753741831835,-354.79456506,0.0001907,2]
[375773680,1753741831846,-7720.90838079,0.00019078,2]
[375773762,1753741837872,-8136.73437706,0.00019078,2]
[375773764,1753741837882,-512.68130731,0.00019172,2]
[375773766,1753741837891,-155.23303411,0.00019172,2]
[375773768,1753741837900,-218.51313959,0.00019172,2]
[375773770,1753741837910,-590.54686274,0.00019173,2]
[375773772,1753741837920,-500.0,0.00019173,2]
[375773774,1753741837929,-504.30457904,0.00019173,2]
[375773776,1753741837939,-500.0,0.00019173,2]
[375773778,1753741837948,-500.0,0.00019173,2]
[375773780,1753741837958,-24611.9140189,0.00019173,2]
[375773782,1753741837968,-158.132,0.00019177,2]
[375773784,1753741837977,-165.91232162,0.00019178,2]
[375773786,1753741837987,-460.0,0.00019178,2]
[375773788,1753741837996,-460.0,0.00019178,2]
[375773790,1753741838006,-500.0,0.00019178,2]
[375773792,1753741838015,-500.0,0.00019178,2]
[375773794,1753741838024,-460.0,0.00019178,2]
[375773796,1753741838034,-460.0,0.00019178,2]
[375773812,1753741838185,-259.50358371,0.00019178,2]
[375773815,1753741838208,-436.06167608,0.00019178,2]
[375773817,1753741838218,-460.0,0.00019178,2]
[375773819,1753741838228,-460.0,0.00019178,2]
[375773821,1753741838238,-460.0,0.00019178,2]
[375773823,1753741838247,-460.0,0.00019178,2]
[375773825,1753741838257,-460.0,0.00019178,2]
[375773827,1753741838267,-460.0,0.00019178,2]
[375773829,1753741838276,-460.0,0.00019178,2]
[375773831,1753741838286,-460.0,0.00019178,2]
[375773833,1753741838296,-460.0,0.00019178,2]
[375773835,1753741838305,-460.0,0.00019178,2]
[375773837,1753741838315,-460.0,0.00019178,2]
[375773839,1753741838325,-460.0,0.00019178,2]
[375773841,1753741838335,-460.0,0.00019178,2]
[375773843,1753741838345,-460.0,0.00019178,2]
[375773845,1753741838354,-460.0,0.00019178,2]
[375773847,1753741838364,-500.0,0.00019178,2]
[375773849,1753741838373,-460.0,0.00019178,2]
[375773851,1753741838383,-460.0,0.00019178,2]
[375773853,1753741838392,-151.0,0.00019178,2]
[375773855,1753741838402,-460.0,0.00019178,2]
[375773857,1753741838412,-460.0,0.00019178,2]
[375773859,1753741838421,-460.0,0.00019178,2]
[375773861,1753741838431,-460.0,0.00019178,2]
[375773863,1753741838440,-460.0,0.00019178,2]
[375773865,1753741838450,-460.0,0.00019178,2]
[375773867,1753741838460,-460.0,0.00019178,2]
[375773869,1753741838470,-460.0,0.00019178,2]
[375773871,1753741838479,-460.0,0.00019178,2]
[375773873,1753741838489,-460.0,0.00019178,2]
[375773875,1753741838498,-557.85181203,0.00019178,2]
[375773877,1753741838507,-460.0,0.00019178,2]
[375773879,1753741838518,-453.40718438,0.00019178,2]
[375773881,1753741838528,-460.0,0.00019178,2]
[375773883,1753741838537,-506.73,0.00019178,2]
[375773885,1753741838547,-460.0,0.00019178,2]
[375773887,1753741838556,-460.0,0.00019178,2]
[375773889,1753741838566,-460.0,0.00019178,2]
[375773891,1753741838575,-460.0,0.00019178,2]
[375773893,1753741838585,-460.0,0.00019178,2]
[375773895,1753741838594,-460.0,0.00019178,2]
[375773897,1753741838604,-460.0,0.00019178,2]
[375773899,1753741838614,-460.0,0.00019178,2]
[375773901,1753741838623,-460.0,0.00019178,2]
[375773903,1753741838632,-460.0,0.00019178,2]
[375773904,1753741838642,-460.0,0.00019178,2]
[375773906,1753741838651,-460.0,0.00019178,2]
[375773908,1753741838661,-460.0,0.00019178,2]
[375773910,1753741838671,-460.0,0.00019178,2]
[375773912,1753741838681,-575.58999031,0.00019178,2]
[375773914,1753741838691,-460.0,0.00019178,2]
[375773916,1753741838700,-460.0,0.00019178,2]
[375773918,1753741838711,-460.0,0.00019178,2]
[375773920,1753741838720,-460.0,0.00019178,2]
[375773922,1753741838730,-436.0,0.00019178,2]
[375773924,1753741838739,-460.0,0.00019178,2]
[375773926,1753741838749,-151.0,0.00019178,2]
[375773928,1753741838764,-151.0,0.00019178,2]
[375773930,1753741838774,-460.0,0.00019178,2]
[375773932,1753741838783,-460.0,0.00019178,2]
[375773934,1753741838793,-460.0,0.00019178,2]
[375773936,1753741838803,-460.0,0.00019178,2]
[375773938,1753741838813,-151.0,0.00019178,2]
[375773940,1753741838823,-480.45,0.00019178,2]
[375773942,1753741838833,-151.0,0.00019178,2]
[375773944,1753741838843,-460.0,0.00019178,2]
[375773946,1753741838852,-460.0,0.00019178,2]
[375773948,1753741838862,-460.0,0.00019178,2]
[375773950,1753741838872,-1089.93,0.00019178,2]
[375773952,1753741838881,-517.75,0.00019178,2]
[375773954,1753741838890,-460.0,0.00019178,2]
[375773956,1753741838903,-460.0,0.00019178,2]
[375773958,1753741838912,-460.0,0.00019178,2]
[375773960,1753741838922,-460.0,0.00019178,2]
[375773962,1753741838931,-460.0,0.00019178,2]
[375773964,1753741838940,-432.13990293,0.00019178,2]
[375773966,1753741838951,-535.58,0.00019178,2]
[375773968,1753741838961,-609.37,0.00019178,2]
[375773970,1753741838970,-460.0,0.00019178,2]
[375773972,1753741838980,-460.0,0.00019178,2]
[375773974,1753741838991,-460.0,0.00019178,2]
[375773976,1753741839001,-460.0,0.00019178,2]
[375773978,1753741839011,-460.0,0.00019178,2]
[375773980,1753741839020,-460.0,0.00019178,2]
[375773982,1753741839031,-460.0,0.00019178,2]
[375773984,1753741839040,-460.0,0.00019178,2]
[375773986,1753741839050,-460.0,0.00019178,2]
[375773988,1753741839060,-460.0,0.00019178,2]
[375773990,1753741839070,-460.0,0.00019178,2]
[375773991,1753741839079,-460.0,0.00019178,2]
[375773993,1753741839089,-460.0,0.00019178,2]
[375773995,1753741839098,-460.0,0.00019178,2]
[375773997,1753741839108,-328.37119653,0.00019178,2]
[375773999,1753741839118,-460.0,0.00019178,2]
[375774001,1753741839127,-460.0,0.00019178,2]
[375774003,1753741839137,-460.0,0.00019178,2]
[375774005,1753741839147,-460.0,0.00019178,2]
[375774007,1753741839157,-460.0,0.00019178,2]
[375774009,1753741839167,-460.0,0.00019178,2]
[375774011,1753741839176,-460.0,0.00019178,2]
[375774013,1753741839186,-460.0,0.00019178,2]
[375774015,1753741839196,-460.0,0.00019178,2]
[375774017,1753741839205,-151.0,0.00019178,2]
[375774019,1753741839215,-163.35391302,0.00019178,2]
[375774021,1753741839224,-289.4233495,0.00019178,2]
[375774023,1753741839234,-151.0,0.00019178,2]
[375774025,1753741839243,-151.0,0.00019178,2]
[375774027,1753741839252,-460.0,0.00019178,2]
[375774029,1753741839262,-460.0,0.00019178,2]
[375774031,1753741839272,-460.0,0.00019178,2]
[375774033,1753741839281,-460.0,0.00019178,2]
[375774035,1753741839290,-460.0,0.00019178,2]
[375774037,1753741839300,-460.0,0.00019178,2]
[375774039,1753741839310,-460.0,0.00019178,2]
[375774041,1753741839320,-460.0,0.00019178,2]
[375774043,1753741839330,-460.0,0.00019178,2]
[375774046,1753741839340,-460.0,0.00019437,2]
[375774048,1753741839349,-1470.16,0.00019437,2]
[375774050,1753741839359,-460.0,0.00019437,2]
[375774052,1753741839368,-460.0,0.00019437,2]
[375774054,1753741839377,-460.0,0.00019437,2]
[375774056,1753741839388,-597.28,0.00019437,2]
[375774057,1753741839397,-460.0,0.00019437,2]
[375774060,1753741839407,-460.0,0.00019437,2]
[375774061,1753741839417,-460.0,0.00019437,2]
[375774064,1753741839428,-460.0,0.00019437,2]
[375774065,1753741839438,-460.0,0.00019437,2]
[375774067,1753741839448,-500.0,0.00019452,2]
[375774069,1753741839459,-151.0,0.00019452,2]
[375774071,1753741839469,-436.0,0.00019452,2]
[375774073,1753741839479,-460.0,0.00019452,2]
[375774075,1753741839490,-203.88558554,0.00019452,2]
[375774078,1753741839500,-460.0,0.00019452,2]
[375774079,1753741839510,-460.0,0.00019452,2]
[375774082,1753741839520,-460.0,0.00019452,2]
[375774084,1753741839530,-524.26,0.00019452,2]
[375774085,1753741839539,-460.0,0.00019452,2]
[375774087,1753741839549,-460.0,0.00019452,2]
[375774089,1753741839558,-460.0,0.00019452,2]
[375774091,1753741839567,-460.0,0.00019452,2]
[375774093,1753741839578,-585.02,0.00019452,2]
[375774095,1753741839587,-330.42280934,0.00019452,2]
[375774098,1753741839598,-460.0,0.00019452,2]
[375774100,1753741839608,-483.25088908,0.00019452,2]
[375774101,1753741839617,-460.0,0.00019452,2]
[375774103,1753741839627,-460.0,0.00019452,2]
[375774105,1753741839637,-460.0,0.00019452,2]
[375774107,1753741839647,-460.0,0.00019452,2]
[375774109,1753741839657,-460.0,0.00019452,2]
[375774111,1753741839666,-460.0,0.00019452,2]
[375774113,1753741839676,-460.0,0.00019452,2]
[375774116,1753741839685,-460.0,0.00019452,2]
[375774118,1753741839695,-480.45,0.00019452,2]
[375774119,1753741839704,-194.35958003,0.00019452,2]
[375774121,1753741839713,-1089.93,0.00019452,2]
[375774123,1753741839723,-460.0,0.00019452,2]
[375774125,1753741839733,-460.0,0.00019452,2]
[375774127,1753741839742,-460.0,0.00019452,2]
[375774129,1753741839752,-535.58,0.00019452,2]
[375774131,1753741839767,-460.0,0.00019452,2]
[375774133,1753741839776,-460.0,0.00019452,2]
[375774135,1753741839787,-460.0,0.00019452,2]
[375774137,1753741839797,-460.0,0.00019452,2]
[375774139,1753741839807,-460.0,0.00019452,2]
[375774141,1753741839816,-460.0,0.00019452,2]
[375774143,1753741839826,-460.0,0.00019452,2]
[375774145,1753741839839,-460.0,0.00019452,2]
[375774147,1753741839849,-488.92,0.00019452,2]
[375774149,1753741839860,-561.99,0.00019452,2]
[375774151,1753741839870,-460.0,0.00019452,2]
[375774153,1753741839879,-328.84,0.00019452,2]
[375774154,1753741839888,-460.0,0.00019452,2]
[375774155,1753741839898,-460.0,0.00019452,2]
[375774157,1753741839907,-460.0,0.00019452,2]
[375774159,1753741839917,-460.0,0.00019452,2]
[375774161,1753741839928,-460.0,0.00019452,2]
[375774164,1753741839937,-344.41,0.00019452,2]
[375774165,1753741839946,-460.0,0.00019452,2]
[375774167,1753741839956,-460.0,0.00019452,2]
[375774169,1753741839967,-460.0,0.00019452,2]
[375774170,1753741839976,-460.0,0.00019452,2]
[375774171,1753741839986,-460.0,0.00019452,2]
[375774172,1753741839995,-200.0,0.00019459,15]
[375774173,1753741840004,-200.0,0.00019459,15]
[375774174,1753741840014,-200.0,0.00019459,15]
[375774175,1753741840024,-200.0,0.00019459,15]
[375774176,1753741840033,-460.0,0.00019711,2]
[375774177,1753741840043,-1470.16,0.00019711,2]
[375774178,1753741840052,-460.0,0.00019711,2]
[375774179,1753741840062,-460.0,0.00019711,2]
[375774180,1753741840072,-597.28,0.00019711,2]
[375774181,1753741840082,-460.0,0.00019711,2]
[375774182,1753741840092,-460.0,0.00019711,2]
[375774183,1753741840103,-460.0,0.00019711,2]
[375774184,1753741840112,-460.0,0.00019711,2]
[375774185,1753741840123,-460.0,0.00019711,2]
[375774186,1753741840134,-500.0,0.00019721,2]
[375774187,1753741840143,-500.0,0.00019726,2]
[375774188,1753741840153,-151.0,0.00019726,2]
[375774189,1753741840163,-436.0,0.00019726,2]
[375774190,1753741840172,-460.0,0.00019726,2]
[375774191,1753741840182,-460.0,0.00019726,2]
[375774192,1753741840191,-460.0,0.00019726,2]
[375774193,1753741840200,-460.0,0.00019726,2]
[375774194,1753741840210,-460.0,0.00019726,2]
[375774196,1753741840220,-399.3,0.00019726,2]
[375774198,1753741840230,-460.0,0.00019726,2]
[375774200,1753741840240,-480.45,0.00019726,2]
[375774202,1753741840249,-1089.93,0.00019726,2]
[375774204,1753741840258,-460.0,0.00019726,2]
[375774206,1753741840268,-460.0,0.00019726,2]
[375774208,1753741840277,-535.58,0.00019726,2]
[375774210,1753741840286,-460.0,0.00019726,2]
[375774212,1753741840296,-460.0,0.00019726,2]
[375774213,1753741840305,-460.0,0.00019726,2]
[375774215,1753741840315,-460.0,0.00019726,2]
[375774217,1753741840324,-460.0,0.00019726,2]
[375774219,1753741840334,-460.0,0.00019726,2]
[375774221,1753741840343,-460.0,0.00019726,2]
[375774223,1753741840352,-460.0,0.00019726,2]
[375774225,1753741840362,-310.37,0.00019726,2]
[375774227,1753741840371,-460.0,0.00019726,2]
[375774229,1753741840380,-460.0,0.00019726,2]
[375774231,1753741840389,-460.0,0.00019726,2]
[375774233,1753741840399,-460.0,0.00019726,2]
[375774235,1753741840409,-460.0,0.00019726,2]